[Event "*** Titled Tuesday Blitz"]
[Site "Chess.com"]
[Date "2019.03.05"]
[Round "6"]
[White "Zarikovs1999"]
[Black "r31415"]
[Result "1-0"]
[WhiteElo "2305"]
[BlackElo "2334"]
[TimeControl "180+2"]
[EndTime "14:25:07 PST"]
[Termination "Zarikovs1999 won by checkmate"]

1. Nf3 {[%clk 0:02:58.1]} 1... d6 {[%clk 0:02:59.1]} 2. e4 {[%clk 0:02:56.4]}
2... Nf6 {[%clk 0:02:59.4]} 3. Nc3 {[%clk 0:02:56.1]} 3... g6 {[%clk 0:02:59.9]}
4. d4 {[%clk 0:02:54.8]} 4... Bg7 {[%clk 0:03:01.2]} 5. Bc4 {[%clk 0:02:54.9]}
5... O-O {[%clk 0:03:01.1]} 6. O-O {[%clk 0:02:55.9]} 6... Nc6 {[%clk
0:02:50.8]} 7. Qe2 {[%clk 0:02:53.1]} 7... e6 {[%clk 0:02:50.6]} 8. Bg5 {[%clk
0:02:42]} 8... h6 {[%clk 0:02:50.3]} 9. Bh4 {[%clk 0:02:41.4]} 9... g5 {[%clk
0:02:51.4]} 10. Bg3 {[%clk 0:02:42.4]} 10... a6 {[%clk 0:02:37]} 11. d5 {[%clk
0:02:37.9]} 11... exd5 {[%clk 0:02:36]} 12. exd5 {[%clk 0:02:37.4]} 12... Ne7
{[%clk 0:02:31.6]} 13. Rad1 {[%clk 0:02:30.2]} 13... Re8 {[%clk 0:02:29.1]} 14.
Rfe1 {[%clk 0:02:23.8]} 14... Nexd5 {[%clk 0:02:23.8]} 15. Qd3 {[%clk
0:02:10.1]} 15... Nxc3 {[%clk 0:02:17.1]} 16. Qxc3 {[%clk 0:02:07.8]} 16... Bg4
{[%clk 0:02:03.2]} 17. Qb3 {[%clk 0:02:05.4]} 17... Rxe1+ {[%clk 0:01:59]} 18.
Rxe1 {[%clk 0:02:03.4]} 18... d5 {[%clk 0:01:58.7]} 19. Bd3 {[%clk 0:02:00.2]}
19... Bxf3 {[%clk 0:01:30.6]} 20. gxf3 {[%clk 0:02:00.3]} 20... b5 {[%clk
0:01:28.2]} 21. Bf5 {[%clk 0:01:56.7]} 21... c5 {[%clk 0:01:10.4]} 22. Qd3
{[%clk 0:01:53.2]} 22... Qa5 {[%clk 0:00:57.1]} 23. Re7 {[%clk 0:01:40.9]} 23...
Qxa2 {[%clk 0:00:45.5]} 24. Be5 {[%clk 0:01:15.4]} 24... Nh5 {[%clk 0:00:36.7]}
25. Bh7+ {[%clk 0:01:12.7]} 25... Kh8 {[%clk 0:00:28.1]} 26. Bxg7+ {[%clk
0:00:58.6]} 26... Nxg7 {[%clk 0:00:21]} 27. Rxf7 {[%clk 0:00:50.8]} 27... Qa1+
{[%clk 0:00:19.5]} 28. Kg2 {[%clk 0:00:50.4]} 28... Qxb2 {[%clk 0:00:19.8]} 29.
Qg6 {[%clk 0:00:43.7]} 29... Qd4 {[%clk 0:00:04.5]} 30. Qxh6 {[%clk 0:00:38.1]}
30... Re8 {[%clk 0:00:02.3]} 31. Bg6+ {[%clk 0:00:37.5]} 31... Kg8 {[%clk
0:00:03.9]} 32. Qh7# {[%clk 0:00:39.4]} 1-0

[Event "*** Titled Tuesday Blitz"]
[Site "Chess.com"]
[Date "2019.03.05"]
[Round "6"]
[White "Denis_Palkovich"]
[Black "Fivetrick"]
[Result "0-1"]
[WhiteElo "2238"]
[BlackElo "2466"]
[TimeControl "180+2"]
[EndTime "14:25:08 PST"]
[Termination "Fivetrick won by resignation"]

1. d4 {[%clk 0:03:01.9]} 1... Nf6 {[%clk 0:03:00.4]} 2. Bf4 {[%clk 0:03:03]}
2... g6 {[%clk 0:03:01]} 3. e3 {[%clk 0:03:04.4]} 3... Bg7 {[%clk 0:03:01.6]} 4.
Nf3 {[%clk 0:03:05.7]} 4... O-O {[%clk 0:03:02.4]} 5. Be2 {[%clk 0:03:06.7]}
5... Nc6 {[%clk 0:03:01.8]} 6. O-O {[%clk 0:03:05.4]} 6... d6 {[%clk 0:03:02]}
7. h3 {[%clk 0:03:05.8]} 7... Nd7 {[%clk 0:03:01.2]} 8. c4 {[%clk 0:03:06.5]}
8... e5 {[%clk 0:03:01.7]} 9. Bh2 {[%clk 0:03:07.4]} 9... f5 {[%clk 0:03:02.2]}
10. Nc3 {[%clk 0:03:07.3]} 10... g5 {[%clk 0:03:01.7]} 11. Rc1 {[%clk
0:03:02.2]} 11... Kh8 {[%clk 0:03:01.8]} 12. c5 {[%clk 0:02:35.2]} 12... g4
{[%clk 0:02:36]} 13. hxg4 {[%clk 0:02:35.9]} 13... fxg4 {[%clk 0:02:36.4]} 14.
Nd2 {[%clk 0:02:22.9]} 14... exd4 {[%clk 0:02:35.2]} 15. exd4 {[%clk 0:02:23.4]}
15... Nxd4 {[%clk 0:02:24.5]} 16. cxd6 {[%clk 0:02:23.9]} 16... cxd6 {[%clk
0:01:45.9]} 17. Bxg4 {[%clk 0:02:23.2]} 17... Ne5 {[%clk 0:01:34.5]} 18. Bxc8
{[%clk 0:02:23.3]} 18... Rxc8 {[%clk 0:01:34.4]} 19. Nde4 {[%clk 0:02:19.1]}
19... Qh4 {[%clk 0:00:54.8]} 20. Bg3 {[%clk 0:01:24.5]} 20... Qh6 {[%clk
0:00:25.4]} 21. Qd2 {[%clk 0:00:58]} 21... Nef3+ {[%clk 0:00:25]} 22. gxf3
{[%clk 0:00:46.9]} 22... Nxf3+ {[%clk 0:00:25.7]} 23. Kg2 {[%clk 0:00:47.6]}
23... Nxd2 {[%clk 0:00:26.3]} 24. Rh1 {[%clk 0:00:42.6]} 24... Nxe4 {[%clk
0:00:09.6]} 25. Rxh6 {[%clk 0:00:41.2]} 25... Bxh6 {[%clk 0:00:10.4]} 26. Rh1
{[%clk 0:00:39.7]} 26... Nxg3 {[%clk 0:00:07.7]} 27. Rxh6 {[%clk 0:00:39.1]}
27... Nf5 {[%clk 0:00:06.8]} 28. Re6 {[%clk 0:00:39.5]} 28... Rg8+ {[%clk
0:00:07.5]} 29. Kf1 {[%clk 0:00:39.6]} 29... Rce8 {[%clk 0:00:08.2]} 30. Rf6
{[%clk 0:00:39.9]} 30... Rgf8 {[%clk 0:00:09.1]} 0-1

[Event "*** Titled Tuesday Blitz"]
[Site "Chess.com"]
[Date "2019.03.05"]
[Round "6"]
[White "ChessicallyInclined"]
[Black "fm_magua"]
[Result "0-1"]
[WhiteElo "2410"]
[BlackElo "2477"]
[TimeControl "180+2"]
[EndTime "14:25:21 PST"]
[Termination "fm_magua won by resignation"]

1. d4 {[%clk 0:03:01.9]} 1... Nf6 {[%clk 0:02:57.6]} 2. c4 {[%clk 0:03:03.2]}
2... g6 {[%clk 0:02:57.6]} 3. Nc3 {[%clk 0:03:04.4]} 3... Bg7 {[%clk 0:02:55.9]}
4. e4 {[%clk 0:03:05.5]} 4... d6 {[%clk 0:02:57.2]} 5. f3 {[%clk 0:03:06.6]}
5... O-O {[%clk 0:02:58.8]} 6. Be3 {[%clk 0:03:06.2]} 6... c5 {[%clk 0:03:00.4]}
7. Nge2 {[%clk 0:03:06]} 7... b6 {[%clk 0:02:59.2]} 8. Qd2 {[%clk 0:03:04.2]}
8... Bb7 {[%clk 0:03:00.5]} 9. d5 {[%clk 0:03:03.3]} 9... a6 {[%clk 0:02:58]}
10. Ng3 {[%clk 0:03:03.7]} 10... b5 {[%clk 0:02:58]} 11. cxb5 {[%clk 0:03:03.5]}
11... axb5 {[%clk 0:02:59.5]} 12. Bxb5 {[%clk 0:03:05.1]} 12... Ba6 {[%clk
0:03:00.8]} 13. O-O {[%clk 0:03:04.2]} 13... Qa5 {[%clk 0:03:00.4]} 14. a4
{[%clk 0:03:00]} 14... Bxb5 {[%clk 0:03:00.4]} 15. Nxb5 {[%clk 0:03:01.9]} 15...
Qb6 {[%clk 0:02:54.6]} 16. Qc2 {[%clk 0:03:00.4]} 16... Nfd7 {[%clk 0:02:53.6]}
17. Kh1 {[%clk 0:02:59.7]} 17... Na6 {[%clk 0:02:54.6]} 18. Ra3 {[%clk
0:02:56.8]} 18... Nb4 {[%clk 0:02:55.4]} 19. Qc4 {[%clk 0:02:57.3]} 19... Ne5
{[%clk 0:02:55.3]} 20. Qe2 {[%clk 0:02:56.3]} 20... Qa5 {[%clk 0:02:43.5]} 21.
Bd2 {[%clk 0:02:49.5]} 21... Nd7 {[%clk 0:02:38.7]} 22. Bc3 {[%clk 0:02:47.3]}
22... Nb6 {[%clk 0:02:34.9]} 23. Bxg7 {[%clk 0:02:42.2]} 23... Kxg7 {[%clk
0:02:36.8]} 24. b3 {[%clk 0:02:41.8]} 24... Rfc8 {[%clk 0:02:31.3]} 25. f4
{[%clk 0:02:39.5]} 25... c4 {[%clk 0:02:31.7]} 26. bxc4 {[%clk 0:02:40.5]} 26...
Nxc4 {[%clk 0:02:31.2]} 27. Raf3 {[%clk 0:02:39.2]} 27... Qxa4 {[%clk
0:02:29.5]} 28. Nc3 {[%clk 0:02:38.1]} 28... Qc2 {[%clk 0:02:28.7]} 29. Qxc2
{[%clk 0:02:11.6]} 29... Nxc2 {[%clk 0:02:29.5]} 30. R3f2 {[%clk 0:02:06.1]}
30... N4e3 {[%clk 0:02:26.6]} 31. Nce2 {[%clk 0:02:05.1]} 31... Nxf1 {[%clk
0:02:24.9]} 32. Nxf1 {[%clk 0:02:07]} 32... Ra1 {[%clk 0:02:23.3]} 33. Ng1
{[%clk 0:02:02]} 33... Nd4 {[%clk 0:02:21.4]} 34. g3 {[%clk 0:02:01.3]} 34...
Rcc1 {[%clk 0:02:13.4]} 35. Kg2 {[%clk 0:01:58.2]} 35... Nc2 {[%clk 0:02:14.4]}
36. Nf3 {[%clk 0:01:37.7]} 36... Rxf1 {[%clk 0:02:13.9]} 37. Rxc2 {[%clk
0:01:38.9]} 37... Rfc1 {[%clk 0:02:09.1]} 38. Re2 {[%clk 0:01:36.7]} 38... Rd1
{[%clk 0:01:59.8]} 39. h4 {[%clk 0:01:36.5]} 39... Ra3 {[%clk 0:02:00.2]} 40. e5
{[%clk 0:01:18]} 40... Rxd5 {[%clk 0:01:51.7]} 41. exd6 {[%clk 0:01:18.5]} 41...
exd6 {[%clk 0:01:37.9]} 42. Re7 {[%clk 0:01:18.1]} 42... h6 {[%clk 0:01:36.9]}
43. h5 {[%clk 0:01:08.8]} 43... Rxh5 {[%clk 0:01:25.8]} 44. Nd4 {[%clk
0:01:06.4]} 44... Rd5 {[%clk 0:01:22.2]} 45. Nc6 {[%clk 0:01:06]} 45... Rdd3
{[%clk 0:01:12.7]} 46. Nd8 {[%clk 0:01:02.5]} 46... Rxg3+ {[%clk 0:01:11.1]} 47.
Kh2 {[%clk 0:01:03.5]} 47... Kf8 {[%clk 0:01:07.8]} 48. Rd7 {[%clk 0:00:49.5]}
48... Rgd3 {[%clk 0:00:59.1]} 0-1

[Event "*** Titled Tuesday Blitz"]
[Site "Chess.com"]
[Date "2019.03.05"]
[Round "6"]
[White "riconaipe"]
[Black "albi1999"]
[Result "0-1"]
[WhiteElo "2430"]
[BlackElo "2439"]
[TimeControl "180+2"]
[EndTime "14:25:25 PST"]
[Termination "albi1999 won by resignation"]

1. d4 {[%clk 0:03:01.9]} 1... d5 {[%clk 0:03:00.7]} 2. c4 {[%clk 0:03:02.7]}
2... e6 {[%clk 0:03:01.5]} 3. Nc3 {[%clk 0:03:03.5]} 3... Nf6 {[%clk 0:03:02.8]}
4. Bg5 {[%clk 0:03:00.7]} 4... Bb4 {[%clk 0:03:02.9]} 5. e3 {[%clk 0:02:59.5]}
5... h6 {[%clk 0:03:02.5]} 6. Bxf6 {[%clk 0:02:59.8]} 6... Qxf6 {[%clk
0:03:04.4]} 7. cxd5 {[%clk 0:03:00.5]} 7... exd5 {[%clk 0:03:05.2]} 8. Ne2
{[%clk 0:02:59]} 8... c6 {[%clk 0:03:03.1]} 9. a3 {[%clk 0:02:57.7]} 9... Bd6
{[%clk 0:02:56.9]} 10. Ng3 {[%clk 0:02:58]} 10... O-O {[%clk 0:02:57.7]} 11. Bd3
{[%clk 0:02:58.8]} 11... Re8 {[%clk 0:02:57.9]} 12. O-O {[%clk 0:02:59.7]} 12...
Nd7 {[%clk 0:02:58.2]} 13. b4 {[%clk 0:02:53.5]} 13... b5 {[%clk 0:02:58.2]} 14.
Qb3 {[%clk 0:02:49.7]} 14... a5 {[%clk 0:02:57.7]} 15. bxa5 {[%clk 0:02:50]}
15... Rxa5 {[%clk 0:02:59.6]} 16. a4 {[%clk 0:02:50.8]} 16... b4 {[%clk
0:02:55.5]} 17. Na2 {[%clk 0:02:49]} 17... Ba6 {[%clk 0:02:52.5]} 18. Nc1 {[%clk
0:02:29.8]} 18... Ra8 {[%clk 0:02:31.2]} 19. Bxa6 {[%clk 0:02:23.5]} 19... R8xa6
{[%clk 0:02:33.1]} 20. Nd3 {[%clk 0:02:24.7]} 20... g6 {[%clk 0:02:31.7]} 21.
Rfc1 {[%clk 0:02:19.8]} 21... h5 {[%clk 0:02:24.6]} 22. Nf1 {[%clk 0:02:07.4]}
22... Bf8 {[%clk 0:02:16]} 23. Nd2 {[%clk 0:02:07.1]} 23... Qd6 {[%clk
0:02:06.7]} 24. Nf3 {[%clk 0:02:00.9]} 24... Nb6 {[%clk 0:02:04.1]} 25. Nc5
{[%clk 0:02:00]} 25... Ra7 {[%clk 0:02:05]} 26. Qxb4 {[%clk 0:01:55.8]} 26...
Nxa4 {[%clk 0:02:01.7]} 27. Qd2 {[%clk 0:01:35.9]} 27... Nxc5 {[%clk 0:02:00.8]}
28. dxc5 {[%clk 0:01:22.6]} 28... Qc7 {[%clk 0:01:58.9]} 29. Rxa5 {[%clk
0:01:14.2]} 29... Qxa5 {[%clk 0:01:56.8]} 30. Qxa5 {[%clk 0:01:14.9]} 30... Rxa5
{[%clk 0:01:58.7]} 31. Nd4 {[%clk 0:01:15.9]} 31... Rxc5 {[%clk 0:01:59.9]} 32.
Rxc5 {[%clk 0:01:14.9]} 32... Bxc5 {[%clk 0:02:01.8]} 33. Nxc6 {[%clk
0:01:15.9]} 33... Kf8 {[%clk 0:02:02.3]} 34. Kf1 {[%clk 0:01:16.7]} 34... Ke8
{[%clk 0:02:03.2]} 35. Ke2 {[%clk 0:01:16.6]} 35... Kd7 {[%clk 0:02:03.4]} 36.
Ne5+ {[%clk 0:01:17.6]} 36... Ke6 {[%clk 0:02:04.9]} 37. Nf3 {[%clk 0:01:19]}
37... Kf5 {[%clk 0:02:05.6]} 38. Kd3 {[%clk 0:01:19.5]} 38... g5 {[%clk
0:02:04.2]} 39. Nd4+ {[%clk 0:01:15]} 39... Ke5 {[%clk 0:02:02.7]} 40. Ne2
{[%clk 0:01:10.2]} 40... f6 {[%clk 0:02:00.6]} 41. h3 {[%clk 0:01:09.4]} 41...
Bb4 {[%clk 0:01:57.1]} 42. g4 {[%clk 0:01:09.2]} 42... hxg4 {[%clk 0:01:53.8]}
43. hxg4 {[%clk 0:01:10.4]} 43... f5 {[%clk 0:01:51.9]} 44. f4+ {[%clk
0:01:10.8]} 44... Kf6 {[%clk 0:01:52.3]} 45. gxf5 {[%clk 0:00:47.6]} 45... g4
{[%clk 0:01:36.4]} 46. e4 {[%clk 0:00:47.6]} 46... dxe4+ {[%clk 0:01:36.7]} 47.
Kxe4 {[%clk 0:00:48.1]} 47... Be1 {[%clk 0:01:37.4]} 48. Nc3 {[%clk 0:00:42.4]}
48... Bxc3 {[%clk 0:01:34.2]} 49. Kd3 {[%clk 0:00:38.9]} 49... Ba5 {[%clk
0:01:33.1]} 50. Ke4 {[%clk 0:00:39.1]} 50... Bc7 {[%clk 0:01:34.1]} 51. Ke3
{[%clk 0:00:32.2]} 51... Kxf5 {[%clk 0:01:36]} 52. Kf2 {[%clk 0:00:33.8]} 52...
Bxf4 {[%clk 0:01:37.9]} 53. Kg2 {[%clk 0:00:35.5]} 53... g3 {[%clk 0:01:38.8]}
54. Kf3 {[%clk 0:00:35.4]} 54... Kg5 {[%clk 0:01:39.9]} 55. Kg2 {[%clk
0:00:37.2]} 55... Kg4 {[%clk 0:01:41.8]} 56. Kh1 {[%clk 0:00:38.8]} 56... Kf3
{[%clk 0:01:42.6]} 57. Kg1 {[%clk 0:00:40.5]} 57... Be3+ {[%clk 0:01:44.1]} 58.
Kh1 {[%clk 0:00:41.5]} 58... g2+ {[%clk 0:01:46]} 0-1

[Event "*** Titled Tuesday Blitz"]
[Site "Chess.com"]
[Date "2019.03.05"]
[Round "6"]
[White "IakovUlivar"]
[Black "Caterpiller35"]
[Result "1/2-1/2"]
[WhiteElo "2500"]
[BlackElo "2345"]
[TimeControl "180+2"]
[EndTime "14:25:30 PST"]
[Termination "Game drawn by repetition"]

1. e4 {[%clk 0:03:01.9]} 1... c5 {[%clk 0:02:59]} 2. Nc3 {[%clk 0:03:02.3]} 2...
Nc6 {[%clk 0:02:54]} 3. g3 {[%clk 0:02:51.9]} 3... d6 {[%clk 0:02:52.8]} 4. Bg2
{[%clk 0:02:53]} 4... g6 {[%clk 0:02:54.4]} 5. d3 {[%clk 0:02:48.8]} 5... Bg7
{[%clk 0:02:55.8]} 6. Nge2 {[%clk 0:02:49]} 6... e5 {[%clk 0:02:56.7]} 7. O-O
{[%clk 0:02:47]} 7... Nge7 {[%clk 0:02:56.4]} 8. f4 {[%clk 0:02:37.6]} 8... exf4
{[%clk 0:02:56]} 9. Nxf4 {[%clk 0:02:35]} 9... O-O {[%clk 0:02:55.9]} 10. Nfd5
{[%clk 0:02:26.6]} 10... Nxd5 {[%clk 0:02:54.8]} 11. Nxd5 {[%clk 0:02:27.9]}
11... Rb8 {[%clk 0:02:47.5]} 12. c3 {[%clk 0:02:15.1]} 12... b5 {[%clk 0:02:47]}
13. Bf4 {[%clk 0:02:12.2]} 13... b4 {[%clk 0:02:47.2]} 14. Qd2 {[%clk
0:02:12.3]} 14... bxc3 {[%clk 0:02:47.3]} 15. bxc3 {[%clk 0:02:14.2]} 15... Ne5
{[%clk 0:02:36.2]} 16. Bh6 {[%clk 0:01:49.5]} 16... f5 {[%clk 0:02:36.4]} 17.
Bg5 {[%clk 0:01:42.8]} 17... Qa5 {[%clk 0:02:27.3]} 18. exf5 {[%clk 0:01:40.1]}
18... Bxf5 {[%clk 0:02:24.6]} 19. Ne7+ {[%clk 0:01:26.8]} 19... Kh8 {[%clk
0:02:24.6]} 20. Nxf5 {[%clk 0:01:28]} 20... gxf5 {[%clk 0:02:14.4]} 21. Be7
{[%clk 0:01:17.1]} 21... Rf7 {[%clk 0:02:12.3]} 22. Bxd6 {[%clk 0:01:15.3]}
22... Rd8 {[%clk 0:02:12.9]} 23. Bxe5 {[%clk 0:01:10.4]} 23... Bxe5 {[%clk
0:02:13.8]} 24. Rac1 {[%clk 0:01:11.6]} 24... c4 {[%clk 0:02:00.8]} 25. d4
{[%clk 0:00:57]} 25... Rxd4 {[%clk 0:01:57.4]} 26. Qg5 {[%clk 0:00:42.9]} 26...
Rg4 {[%clk 0:01:46.8]} 27. Qh5 {[%clk 0:00:30.4]} 27... Rf8 {[%clk 0:01:34.5]}
28. Kh1 {[%clk 0:00:30.6]} 28... Bxc3 {[%clk 0:01:20.9]} 29. Qxg4 {[%clk
0:00:14.1]} 29... fxg4 {[%clk 0:01:20.3]} 30. Rxf8+ {[%clk 0:00:16]} 30... Kg7
{[%clk 0:01:21.3]} 31. Rcf1 {[%clk 0:00:11.6]} 31... Qxa2 {[%clk 0:01:18.3]} 32.
Be4 {[%clk 0:00:09.1]} 32... Qe2 {[%clk 0:01:15.2]} 33. R8f7+ {[%clk 0:00:08.8]}
33... Kg8 {[%clk 0:01:15.1]} 34. Rf8+ {[%clk 0:00:09.6]} 34... Kg7 {[%clk
0:01:15.8]} 35. R1f7+ {[%clk 0:00:10.7]} 35... Kh6 {[%clk 0:01:14.6]} 36. Rxh7+
{[%clk 0:00:11.6]} 36... Kg5 {[%clk 0:01:15.8]} 37. Rf5+ {[%clk 0:00:03.2]}
37... Kg6 {[%clk 0:01:16.5]} 38. Rf4+ {[%clk 0:00:02.4]} 38... Kg5 {[%clk
0:01:00.2]} 39. Rf5+ {[%clk 0:00:04.3]} 39... Kg6 {[%clk 0:01:01.3]} 40. Rf4+
{[%clk 0:00:03.2]} 40... Kg5 {[%clk 0:01:02.2]} 41. Rf5+ {[%clk 0:00:04.3]}
41... Kg6 {[%clk 0:01:03.3]} 42. Rf4+ {[%clk 0:00:05.3]} 1/2-1/2

[Event "*** Titled Tuesday Blitz"]
[Site "Chess.com"]
[Date "2019.03.05"]
[Round "6"]
[White "Vadim_Biliy"]
[Black "Atanejhad"]
[Result "0-1"]
[WhiteElo "2115"]
[BlackElo "2237"]
[TimeControl "180+2"]
[EndTime "14:25:30 PST"]
[Termination "Atanejhad won by checkmate"]

1. d4 {[%clk 0:03:01.9]} 1... Nf6 {[%clk 0:03:00.2]} 2. Nf3 {[%clk 0:03:00.1]}
2... c5 {[%clk 0:03:00.9]} 3. e3 {[%clk 0:03:00.5]} 3... d5 {[%clk 0:03:01.5]}
4. Be2 {[%clk 0:03:01.4]} 4... Nc6 {[%clk 0:03:02.8]} 5. O-O {[%clk 0:03:01.6]}
5... Bg4 {[%clk 0:03:04.3]} 6. h3 {[%clk 0:02:59.1]} 6... Bxf3 {[%clk
0:03:04.6]} 7. Bxf3 {[%clk 0:03:00.1]} 7... cxd4 {[%clk 0:03:06.2]} 8. exd4
{[%clk 0:03:00.4]} 8... e6 {[%clk 0:03:07.8]} 9. c4 {[%clk 0:02:59.6]} 9... dxc4
{[%clk 0:03:07.5]} 10. Bxc6+ {[%clk 0:02:59.6]} 10... bxc6 {[%clk 0:03:07.6]}
11. Qa4 {[%clk 0:02:55.8]} 11... Rc8 {[%clk 0:03:03.8]} 12. Qxc4 {[%clk
0:02:53.9]} 12... Be7 {[%clk 0:03:04.1]} 13. Nc3 {[%clk 0:02:53.2]} 13... O-O
{[%clk 0:03:05.5]} 14. Bf4 {[%clk 0:02:46.1]} 14... Qb6 {[%clk 0:03:00.7]} 15.
b3 {[%clk 0:02:44.4]} 15... Rfd8 {[%clk 0:03:00.6]} 16. Be5 {[%clk 0:02:42.8]}
16... c5 {[%clk 0:02:57.9]} 17. Na4 {[%clk 0:02:35.6]} 17... Qa5 {[%clk
0:02:56.3]} 18. Rac1 {[%clk 0:02:27.1]} 18... Nd7 {[%clk 0:02:47]} 19. Rfd1
{[%clk 0:02:07]} 19... h6 {[%clk 0:02:38.7]} 20. Bf4 {[%clk 0:01:59.1]} 20...
cxd4 {[%clk 0:02:09.8]} 21. Qxc8 {[%clk 0:01:57.5]} 21... Rxc8 {[%clk
0:02:11.7]} 22. Rxc8+ {[%clk 0:01:57.1]} 22... Kh7 {[%clk 0:02:13.3]} 23. Rxd4
{[%clk 0:01:49]} 23... Nf6 {[%clk 0:01:58.4]} 24. Bd2 {[%clk 0:01:45]} 24... Qe5
{[%clk 0:01:55.3]} 25. Rdc4 {[%clk 0:01:37.4]} 25... Qa1+ {[%clk 0:01:52.4]} 26.
Kh2 {[%clk 0:01:11.2]} 26... Bd6+ {[%clk 0:01:48.5]} 27. g3 {[%clk 0:01:09]}
27... Qxa2 {[%clk 0:01:47.1]} 28. Be3 {[%clk 0:01:09.7]} 28... Nh5 {[%clk
0:01:39.9]} 29. Nc5 {[%clk 0:01:06.8]} 29... Bxg3+ {[%clk 0:01:35.4]} 30. Kg2
{[%clk 0:01:06.5]} 30... Bh4 {[%clk 0:01:29.9]} 31. Rc7 {[%clk 0:01:04.7]} 31...
Bg5 {[%clk 0:01:06.7]} 32. Bd4 {[%clk 0:00:53.9]} 32... Nf4+ {[%clk 0:01:00.2]}
33. Kf3 {[%clk 0:00:54.7]} 33... Qe2+ {[%clk 0:00:56.6]} 34. Kg3 {[%clk
0:00:52.6]} 34... Nh5+ {[%clk 0:00:19.6]} 35. Kg2 {[%clk 0:00:53]} 35... Nf4+
{[%clk 0:00:19]} 36. Kg3 {[%clk 0:00:52]} 36... Qh5 {[%clk 0:00:20.5]} 37. f3
{[%clk 0:00:39.5]} 37... Qxh3+ {[%clk 0:00:17.4]} 38. Kf2 {[%clk 0:00:40]} 38...
Qg2+ {[%clk 0:00:18.9]} 39. Ke1 {[%clk 0:00:39.3]} 39... Qe2# {[%clk 0:00:20.2]}
0-1

[Event "*** Titled Tuesday Blitz"]
[Site "Chess.com"]
[Date "2019.03.05"]
[Round "6"]
[White "chessking2151"]
[Black "joppie2"]
[Result "0-1"]
[WhiteElo "2600"]
[BlackElo "2773"]
[TimeControl "180+2"]
[EndTime "14:25:39 PST"]
[Termination "joppie2 won by resignation"]

1. d4 {[%clk 0:03:01.9]} 1... Nf6 {[%clk 0:02:31.6]} 2. Nf3 {[%clk 0:02:53.6]}
2... d5 {[%clk 0:02:32.2]} 3. c4 {[%clk 0:02:51.6]} 3... e6 {[%clk 0:02:33.2]}
4. Nc3 {[%clk 0:02:52.2]} 4... dxc4 {[%clk 0:02:34.2]} 5. Bg5 {[%clk 0:02:51.3]}
5... Bb4 {[%clk 0:02:34.6]} 6. e3 {[%clk 0:02:29.8]} 6... b5 {[%clk 0:02:33.6]}
7. a4 {[%clk 0:02:29.3]} 7... c6 {[%clk 0:02:34.6]} 8. Be2 {[%clk 0:02:28.2]}
8... h6 {[%clk 0:02:32.3]} 9. Bh4 {[%clk 0:02:29.2]} 9... Bb7 {[%clk 0:02:27.2]}
10. Qc2 {[%clk 0:02:20.1]} 10... Nbd7 {[%clk 0:02:23.6]} 11. O-O {[%clk
0:01:54.9]} 11... a6 {[%clk 0:02:24.4]} 12. Rad1 {[%clk 0:01:45]} 12... Be7
{[%clk 0:02:19.5]} 13. Ne5 {[%clk 0:01:32]} 13... O-O {[%clk 0:02:19.2]} 14. Bg3
{[%clk 0:01:09.6]} 14... Nd5 {[%clk 0:02:12.3]} 15. Bf3 {[%clk 0:00:38.6]} 15...
Nxe5 {[%clk 0:02:02.8]} 16. dxe5 {[%clk 0:00:35.6]} 16... Qa5 {[%clk 0:01:50.8]}
17. Ne4 {[%clk 0:00:22.4]} 17... c5 {[%clk 0:01:42.2]} 18. Qb1 {[%clk
0:00:13.1]} 18... Qxa4 {[%clk 0:01:36.2]} 19. Nd6 {[%clk 0:00:10.9]} 19... Bc6
{[%clk 0:01:33.3]} 20. h4 {[%clk 0:00:10.5]} 20... c3 {[%clk 0:01:33]} 21. Bxd5
{[%clk 0:00:07]} 21... c2 {[%clk 0:01:34]} 22. Qxc2 {[%clk 0:00:04.6]} 22...
Qxc2 {[%clk 0:01:34.6]} 23. Bxc6 {[%clk 0:00:06.5]} 23... Rad8 {[%clk
0:01:34.9]} 24. Rb1 {[%clk 0:00:04.4]} 24... c4 {[%clk 0:01:33]} 25. Rfc1 {[%clk
0:00:05.5]} 25... Qg6 {[%clk 0:01:29.5]} 26. Be4 {[%clk 0:00:05.9]} 26... f5
{[%clk 0:01:22.6]} 27. Bf3 {[%clk 0:00:04.8]} 27... Bxd6 {[%clk 0:01:15.8]} 28.
exd6 {[%clk 0:00:05.2]} 28... f4 {[%clk 0:01:12.4]} 29. exf4 {[%clk 0:00:04.6]}
29... Qf5 {[%clk 0:01:10.3]} 30. Rd1 {[%clk 0:00:03.6]} 30... Rxd6 {[%clk
0:01:11.6]} 31. Rxd6 {[%clk 0:00:05.5]} 31... Qxb1+ {[%clk 0:01:12.8]} 32. Kh2
{[%clk 0:00:07]} 32... Qxb2 {[%clk 0:01:14.2]} 33. Rxe6 {[%clk 0:00:08.1]} 33...
c3 {[%clk 0:01:15.2]} 34. Bd5 {[%clk 0:00:09.4]} 34... Kh8 {[%clk 0:01:15.8]}
35. f5 {[%clk 0:00:10.9]} 35... c2 {[%clk 0:01:16.9]} 36. Bd6 {[%clk 0:00:06.2]}
36... Rd8 {[%clk 0:01:14.8]} 37. f6 {[%clk 0:00:04]} 37... c1=Q {[%clk
0:01:13.4]} 38. f7 {[%clk 0:00:04.2]} 38... Qc8 {[%clk 0:00:40.6]} 39. f8=Q+
{[%clk 0:00:03.2]} 39... Rxf8 {[%clk 0:00:41.4]} 40. Bxf8 {[%clk 0:00:03.9]}
40... Qxf8 {[%clk 0:00:42.5]} 0-1